bitfinex-derivatives/quotes_SOLF0:USTF0_20241208
["timestamp","ask_amount","ask_price","bid_price","bid_amount"]
[1733694853296,2.121,235.61,235.57,2.1213]
[1733694853495,2.121,235.61,235.58,4.30568459]
[1733694853695,8.74592821,235.61,235.59,1.37925743]
[1733694853994,8.74592821,235.61,235.58,2.1213]
[1733694854190,8.74592821,235.61,235.59,1.37928783]
[1733694854391,8.74592821,235.61,235.58,2.1213]
[1733694854695,8.74592821,235.61,235.59,1.37930478]
[1733694854896,8.74592821,235.61,235.58,2.1213]
[1733694855097,8.74592821,235.61,235.6,1.37930918]
[1733694858196,2.1211,235.6,235.57,2.1214]
[1733694858402,2.1211,235.6,235.58,4.30649818]
[1733694858602,2.1211,235.6,235.58,1.37946688]
[1733694858808,2.1211,235.6,235.59,1.37946688]
[1733694861914,2.1209,235.62,235.59,1.37946688]
[1733694862111,1.84,235.63,235.56,6.62492821]
[1733694862311,1.84,235.63,235.6,1.37939077]
[1733694862506,2.1208,235.63,235.58,2.1212]
[1733694862709,2.1208,235.63,235.59,4.30604257]
[1733694862906,2.1208,235.63,235.6,1.3793504]
[1733694863109,2.1208,235.63,235.59,2.1212]
[1733694863320,2.1208,235.63,235.6,1.37936377]
[1733694863509,2.1208,235.63,235.59,2.1212]
[1733694863713,1.3392,235.66,235.6,1.379319]
[1733694863913,1.3392,235.66,235.61,2.1209]
[1733694863914,2.1207,235.65,235.61,2.1209]
[1733694864113,6.62492821,235.64,235.61,2.1209]
[1733694864915,6.62492821,235.64,235.62,1.37887348]
[1733694865116,6.62492821,235.64,235.61,2.1209]
[1733694865318,6.62492821,235.64,235.62,1.37887517]
[1733694865518,6.62492821,235.64,235.61,2.1209]
[1733694865716,6.62492821,235.64,235.62,1.37869102]
[1733694866022,6.62492821,235.64,235.61,2.1209]
[1733694866218,6.62492821,235.64,235.62,1.37879973]
[1733694866524,2.1207,235.65,235.61,2.1209]
[1733694866817,1.3324,235.72,235.64,2.1207]
[1733694866818,8.74532821,235.68,235.64,2.1207]
[1733694867613,2.1205,235.67,235.64,2.1207]
[1733694868422,2.1205,235.67,235.63,2.1208]
[1733694868627,2.1205,235.67,235.64,1.37752579]
[1733694868923,2.1205,235.67,235.63,2.1208]
[1733694869122,2.1205,235.67,235.64,1.37752217]
[1733694869422,2.1205,235.67,235.63,2.1208]
[1733694870418,6.62492821,235.66,235.63,2.1208]
[1733694874726,6.62492821,235.66,235.64,2.1207]
[1733694874928,2.1205,235.67,235.64,2.1207]
[1733694875423,6.62492821,235.68,235.64,2.1207]
[1733694876423,6.62492821,235.68,235.65,2.1206]
[1733694878433,6.62492821,235.7,235.63,6.62492821]
[1733694879131,8.74512821,235.7,235.63,6.62492821]
[1733694880233,8.74512821,235.7,235.67,2.1204]
[1733694880828,2.1202,235.7,235.67,2.1204]
[1733694881024,2.1201,235.71,235.67,2.1204]
[1733694881230,2.1201,235.71,235.68,2.1204]
[1733694881833,8.44492821,235.72,235.68,2.1204]
[1733694882034,10.56492821,235.72,235.68,2.1204]
[1733694882333,10.56492821,235.72,235.65,6.62492821]
[1733694883033,2.1198,235.75,235.71,2.12]
[1733694885933,6.62492821,235.74,235.71,2.12]
[1733694891532,6.62492821,235.72,235.67,2.1205]
[1733694891736,6.62492821,235.7,235.67,2.1205]
[1733694892839,6.62492821,235.7,235.66,2.1205]
[1733694893436,2.1203,235.69,235.65,2.1206]
[1733694893739,6.62492821,235.68,235.61,6.62492821]
[1733694894040,2.1205,235.67,235.64,2.1207]
[1733694895040,2.1205,235.67,235.61,6.62492821]
[1733694895234,8.74552821,235.66,235.62,4.28885416]
[1733694895434,8.74552821,235.66,235.63,1.37377804]
[1733694895638,8.74552821,235.66,235.59,6.62492821]
[1733694895934,8.74552821,235.66,235.6,11.15206101]
[1733694896133,8.74552821,235.66,235.61,6.48757493]
[1733694896336,6.62492821,235.64,235.62,1.37377313]
[1733694896637,6.62492821,235.64,235.57,6.62492821]
[1733694896836,6.62492821,235.64,235.58,6.49036493]
[1733694897037,6.62492821,235.64,235.57,6.62492821]
[1733694897236,6.62492821,235.64,235.59,1.37439087]
[1733694897537,6.62492821,235.64,235.57,6.62492821]
[1733694897735,6.62492821,235.64,235.59,2.1212]
[1733694897736,2.1208,235.63,235.59,2.1212]
[1733694898437,2.121,235.61,235.57,2.1214]
[1733694898737,2.121,235.61,235.58,1.37506888]
[1733694898940,6.62492821,235.64,235.56,6.62492821]
[1733694899237,2.1208,235.63,235.59,2.1212]
[1733694900735,2.1207,235.64,235.61,2.121]
[1733694900941,2.1207,235.64,235.6,6.62492821]
[1733694901135,2.1207,235.64,235.53,2.09532]
[1733694901341,2.1207,235.64,235.59,6.62492821]
[1733694901640,2.1207,235.64,235.6,1.37507967]
[1733694901837,2.1207,235.64,235.59,6.62492821]
[1733694902043,2.1207,235.64,235.6,1.37503592]
[1733694902341,2.1207,235.64,235.59,6.62492821]
[1733694902541,2.1207,235.64,235.6,1.37516724]
[1733694902737,2.1207,235.64,235.6,2.1211]
[1733694904039,1.3288,235.65,235.61,2.121]
[1733694905645,3.4495,235.65,235.61,2.121]
[1733694908540,2.1208,235.64,235.6,2.1211]
[1733694908740,1.3288,235.65,235.53,1.70023495]
[1733694908944,6.62492821,235.64,235.56,6.62492821]
[1733694909242,6.62492821,235.64,235.57,6.41751611]
[1733694909437,6.62492821,235.64,235.58,1.37615832]
[1733694909743,6.62492821,235.64,235.57,2.1213]
[1733694909939,6.62492821,235.6,235.58,1.37634538]
[1733694910146,8.44492821,235.6,235.54,8.74652821]
[1733694910346,8.44492821,235.6,235.55,4.29790017]
[1733694910643,2.1212,235.59,235.56,1.3766194]
[1733694910838,2.1212,235.59,235.54,8.74652821]
[1733694911045,2.1212,235.59,235.55,4.29724696]
[1733694911245,2.1212,235.59,235.56,1.3764087]
[1733694911441,2.1212,235.59,235.54,8.74652821]
[1733694911743,2.1212,235.59,235.55,6.41854112]
[1733694911937,2.1212,235.59,235.56,1.37638254]
[1733694912143,1.82,235.78,235.58,6.62492821]
[1733694912339,1.82,235.78,235.57,11.16652665]
[1733694912340,9.31282821,235.74,235.67,6.62492821]
[1733694912744,1.82,235.73,235.67,6.62492821]
[1733694912944,3.9399,235.73,235.67,8.74542821]
[1733694916041,2.1202,235.7,235.65,2.1206]
[1733694916241,6.62492821,235.7,235.59,1.82]
[1733694916445,6.62492821,235.7,235.63,6.62492821]
[1733694916648,6.62492821,235.7,235.64,4.29165346]
[1733694916943,6.62492821,235.7,235.63,6.62492821]
[1733694917141,6.62492821,235.7,235.65,1.37411085]
[1733694917847,2.1203,235.69,235.65,1.37411085]
[1733694918044,1.82,235.68,235.65,1.37411085]
[1733694921646,1.82,235.68,235.64,2.1207]
[1733694921848,1.82,235.68,235.65,1.37436298]
[1733694922146,1.82,235.68,235.64,2.1207]
[1733694924744,8.44492821,235.68,235.64,2.1207]
[1733694927253,8.44492821,235.68,235.62,6.62492821]
[1733694927447,8.44492821,235.68,235.65,2.1206]
[1733694937758,10.56532821,235.68,235.65,2.1206]
[1733694939667,3.9404,235.68,235.65,2.1206]
[1733694941955,3.9404,235.68,235.57,1.3758]
[1733694941956,1.82,235.68,235.62,6.62492821]
[1733694942161,6.62492821,235.64,235.56,44.3691503]
[1733694942360,6.62492821,235.62,235.57,11.18650413]
[1733694942562,6.62492821,235.62,235.58,11.18650413]
[1733694942758,6.62492821,235.62,235.59,6.51098375]
[1733694942959,6.62492821,235.62,235.6,4.30232407]
[1733694943163,6.62492821,235.61,235.54,0.29704]
[1733694943471,6.62492821,235.57,235.55,11.18946043]
[1733694943667,6.62492821,235.57,235.56,4.30346104]
[1733694943668,8.44492821,235.57,235.56,4.30346104]
[1733694944565,10.56642821,235.57,235.56,4.30346104]
[1733694944766,1.82,235.57,235.56,4.30346104]
[1733694945569,6.62492821,235.59,235.56,4.30346104]
[1733694945570,1.82,235.59,235.56,4.30346104]
[1733694945769,1.82,235.59,235.57,1.38053072]
[1733694945970,1.82,235.59,235.54,6.92196821]
[1733694946170,1.82,235.59,235.55,6.48192137]
[1733694946361,1.82,235.59,235.54,6.92196821]
[1733694946362,1.82,235.59,235.56,4.2914748]
[1733694946567,1.82,235.59,235.57,1.36873943]
[1733694946870,1.82,235.59,235.56,2.1214]
[1733694947066,1.82,235.6,235.57,1.36816988]
[1733694947269,1.82,235.6,235.58,1.36817503]
[1733694947469,1.82,235.6,235.56,2.1214]
[1733694947669,1.82,235.6,235.57,1.36800547]
[1733694947869,1.82,235.6,235.58,1.36802906]
[1733694948071,1.82,235.6,235.56,8.74632821]
[1733694948271,1.82,235.6,235.57,4.28907716]
[1733694948467,1.82,235.6,235.56,2.1214]
[1733694948771,1.82,235.6,235.57,1.36787708]
[1733694948969,1.82,235.6,235.56,2.1214]
[1733694949172,3.9411,235.6,235.57,1.36795026]
[1733694949366,3.9411,235.6,235.56,2.1214]
[1733694949569,3.9411,235.6,235.57,1.36789912]
[1733694949774,3.9411,235.6,235.56,2.1214]
[1733694949973,3.9411,235.6,235.57,1.36776909]
[1733694950176,3.9411,235.6,235.56,2.1214]
[1733694950377,3.9411,235.6,235.57,1.36777058]
[1733694950577,3.9411,235.6,235.56,2.1214]
[1733694950774,3.9411,235.6,235.57,1.36760663]
[1733694950974,3.9411,235.6,235.56,2.1214]
[1733694951174,3.9411,235.6,235.57,1.36764085]
[1733694951377,3.9411,235.6,235.56,2.1214]
[1733694951776,3.9411,235.6,235.57,1.36752664]
[1733694951978,3.9411,235.6,235.56,2.1214]
[1733694952173,3.9411,235.6,235.57,1.36747573]
[1733694952373,3.9411,235.6,235.56,2.1214]
[1733694952773,3.9411,235.6,235.57,1.36731622]
[1733694952977,3.9411,235.6,235.56,2.1214]
[1733694953275,3.9411,235.6,235.57,1.36738659]
[1733694953475,3.9411,235.6,235.56,2.1214]
[1733694953675,3.9411,235.6,235.57,1.36712593]
[1733694953876,3.9411,235.6,235.56,2.1214]
[1733694955578,8.74612821,235.59,235.57,1.36703578]
[1733694955780,8.74612821,235.59,235.55,2.1216]
[1733694955982,6.62492821,235.59,235.54,0.29704]
[1733694956182,6.62492821,235.59,235.55,4.28636938]
[1733694956183,2.1214,235.58,235.55,4.28636938]
[1733694956381,2.1214,235.58,235.54,0.29704]
[1733694956382,2.1214,235.58,235.56,1.36712478]
[1733694956575,2.1214,235.58,235.54,0.29704]
[1733694956780,2.1214,235.58,235.55,4.28689643]
[1733694957080,6.62492821,235.57,235.54,0.29704]
[1733694957279,6.62492821,235.57,235.55,1.36737365]
[1733694957480,6.62492821,235.57,235.54,0.29704]
[1733694957684,2.1215,235.56,235.55,1.36721328]
[1733694958789,6.62492821,235.57,235.54,0.29704]
[1733694958987,8.74652821,235.55,235.54,0.29704]
[1733694960187,2.1219,235.52,235.49,44.40741545]
[1733694960386,2.1219,235.52,235.5,4.28709117]
[1733694960589,2.1219,235.52,235.51,1.36731383]
[1733694961283,2.1219,235.52,235.49,44.40741545]
[1733694962786,2.1217,235.54,235.5,1.3669347]
[1733694963483,2.1218,235.53,235.49,46.52951545]
[1733694963693,2.1218,235.53,235.5,2.122]
[1733694964986,3.9504,235.59,235.52,6.62492821]
[1733694965286,3.9504,235.59,235.49,44.40741545]
[1733694965287,1.82,235.58,235.54,6.62492821]
[1733694966687,1.82,235.58,235.49,44.40741545]
[1733694966882,1.82,235.58,235.52,6.62492821]
[1733694967080,1.82,235.57,235.53,4.28339264]
[1733694967280,1.82,235.57,235.52,6.62492821]
[1733694967281,1.82,235.57,235.54,1.36616544]
[1733694967485,1.82,235.57,235.52,6.62492821]
[1733694967486,1.82,235.57,235.55,1.36616544]
[1733694967687,1.82,235.57,235.53,2.1217]
[1733694967887,1.82,235.57,235.54,4.28300316]
[1733694968088,1.82,235.57,235.55,1.36602135]
[1733694968289,1.82,235.57,235.53,2.1217]
[1733694968492,1.82,235.57,235.54,4.28304776]
[1733694968689,1.82,235.57,235.55,1.36603723]
[1733694968889,1.82,235.57,235.53,2.1217]
[1733694969087,1.82,235.57,235.54,4.2830592]
[1733694969286,1.82,235.57,235.55,1.36604408]
[1733694969483,1.82,235.57,235.54,8.74652821]
[1733694969889,1.82,235.57,235.55,1.36612006]
[1733694970195,1.82,235.57,235.54,8.74652821]
[1733694970493,1.82,235.57,235.55,1.36623462]
[1733694970683,1.82,235.57,235.54,8.74652821]
[1733694970888,1.82,235.57,235.55,1.36615438]
[1733694971095,1.82,235.57,235.54,2.1216]
[1733694971393,1.82,235.57,235.55,1.36612481]
[1733694971594,1.82,235.57,235.54,2.1216]
[1733694971785,1.82,235.57,235.55,1.36615443]
[1733694972092,1.82,235.57,235.54,2.1216]
[1733694972292,1.82,235.57,235.55,1.36616288]
[1733694972492,1.82,235.57,235.54,2.1216]
[1733694972693,1.82,235.57,235.55,1.36621693]
[1733694972893,1.82,235.57,235.54,2.1216]
[1733694973294,1.82,235.57,235.55,4.28314826]
[1733694973492,1.82,235.57,235.54,2.1216]
[1733694973692,1.82,235.57,235.55,1.36612553]
[1733694973891,1.82,235.57,235.54,2.1216]
[1733694974094,1.82,235.57,235.55,1.36607494]
[1733694974394,1.82,235.57,235.54,2.1216]
[1733694974694,1.82,235.57,235.55,1.36620954]
[1733694974893,1.82,235.57,235.54,2.1216]
[1733694975095,1.82,235.57,235.55,1.36616242]
[1733694975293,1.82,235.57,235.54,2.1216]
[1733694975491,1.82,235.57,235.55,1.36630269]
[1733694975793,1.82,235.57,235.54,2.1216]
[1733694975994,1.82,235.57,235.55,1.36630773]
[1733694976197,1.82,235.57,235.54,2.1216]
[1733694976395,8.44492821,235.57,235.55,1.36634172]
[1733694976695,10.56632821,235.57,235.54,2.1216]
[1733694976893,10.56632821,235.57,235.55,1.36653413]
[1733694977191,10.56632821,235.57,235.54,2.1216]
[1733694977494,10.56632821,235.57,235.55,1.36673025]
[1733694977691,10.56632821,235.57,235.54,2.1216]
[1733694978492,10.56632821,235.57,235.55,1.36681837]
[1733694978692,10.56632821,235.57,235.54,2.1216]
[1733694978895,10.56632821,235.57,235.55,1.36694147]
[1733694979094,10.56632821,235.57,235.54,2.1216]
[1733694979295,10.56632821,235.57,235.55,1.36698978]
[1733694979492,10.56632821,235.57,235.54,2.1216]
[1733694979697,10.56632821,235.57,235.55,1.36722788]
[1733694979998,10.56632821,235.57,235.54,2.1216]
[1733694980199,10.56632821,235.57,235.55,1.3672499]
[1733694980503,10.56632821,235.57,235.54,2.1216]
[1733694981292,10.56632821,235.57,235.55,1.36813128]
[1733694981497,10.56632821,235.57,235.54,2.1216]
[1733694981697,10.56632821,235.57,235.55,1.36810178]
[1733694981895,10.56632821,235.57,235.54,2.1216]
[1733694982101,3.9414,235.57,235.55,4.2892506]
[1733694982296,1.82,235.57,235.56,1.3680713]
[1733694982491,2.1213,235.58,235.56,1.3680713]
[1733694982689,2.1213,235.58,235.54,2.1216]
[1733694982690,3.9413,235.58,235.54,2.1216]
[1733694982891,3.9413,235.58,235.55,4.29045511]
[1733694983095,3.9413,235.58,235.56,1.36842098]
[1733694983292,3.9413,235.58,235.54,2.1216]
[1733694983494,2.1214,235.57,235.55,6.48257237]
[1733694983691,2.1214,235.57,235.56,4.29190123]
[1733694985702,8.74632821,235.57,235.56,4.29190123]
[1733694986303,8.74632821,235.57,235.56,6.48615242]
[1733694987601,8.74632821,235.57,235.56,6.49544909]
[1733694988405,8.74632821,235.57,235.56,11.1813627]
[1733694989205,1.82,235.58,235.56,11.1813627]
[1733694989403,1.82,235.59,235.57,6.49544909]
[1733694989602,1.82,235.59,235.58,4.30042365]
[1733694990411,1.82,235.59,235.58,6.49542385]
[1733694991406,1.82,235.59,235.58,11.18081807]
[1733694992606,3.9412,235.59,235.58,11.18081807]
[1733694993206,3.9412,235.59,235.58,6.49542385]
[1733694994001,3.9412,235.59,235.58,11.17971198]
[1733694994507,3.9412,235.59,235.55,2.1215]
[1733694994809,3.9412,235.59,235.56,11.17537047]
[1733694995009,3.9412,235.59,235.57,11.17537047]
[1733694995211,3.9412,235.59,235.58,6.49191191]
[1733694997410,3.9412,235.59,235.58,4.29804088]
[1733694998009,3.9412,235.59,235.55,2.1215]
[1733694998313,3.9412,235.59,235.56,8.97842797]
[1733694998505,8.74622821,235.58,235.57,6.4898148]
[1733694998705,8.74622821,235.58,235.57,4.29660746]
[1733695000516,10.56622821,235.58,235.57,4.29660746]
[1733695001618,10.56622821,235.58,235.57,1.37046638]
[1733695001915,10.56622821,235.58,235.57,4.29754241]
[1733695003511,10.56622821,235.58,235.57,6.49138726]
[1733695003716,3.9413,235.58,235.57,6.49138726]
[1733695003916,3.9413,235.58,235.57,4.29754241]
[1733695004420,3.9413,235.58,235.57,6.49137834]
[1733695004921,3.9413,235.58,235.57,11.17427357]
[1733695005114,1.82,235.58,235.53,8.74662821]
[1733695005421,1.82,235.58,235.54,17.02765841]
[1733695005422,2.1214,235.57,235.54,17.02765841]
[1733695005616,2.1214,235.57,235.55,17.02765841]
[1733695005821,2.1214,235.57,235.56,11.1740687]
[1733695006218,2.1214,235.57,235.53,8.74662821]
[1733695006412,2.1214,235.57,235.56,2.19434154]
[1733695006718,2.1214,235.57,235.56,7.61207042]
[1733695006921,2.1214,235.57,235.56,11.17759706]
[1733695007725,2.1212,235.6,235.56,13.29909706]
[1733695008015,1.82,235.59,235.57,11.17759706]
[1733695008221,1.82,235.59,235.58,6.49324603]
[1733695008916,1.82,235.59,235.58,2.9277323]
[1733695009124,1.82,235.59,235.58,6.49322687]
[1733695012117,1.82,235.61,235.58,6.49322687]
[1733695012319,1.82,235.61,235.59,4.2988978]
[1733695012519,1.82,235.61,235.57,2.1213]
[1733695012719,1.82,235.61,235.58,6.49249091]
[1733695013024,1.82,235.61,235.59,4.29828755]
[1733695013223,1.82,235.61,235.6,1.37110112]
[1733695013426,2.121,235.62,235.6,1.37110112]
[1733695013725,3.941,235.62,235.58,2.1213]
[1733695014026,3.941,235.62,235.59,4.2980416]
[1733695014324,3.941,235.62,235.6,1.37107443]
[1733695014623,3.941,235.62,235.58,2.1213]
[1733695014822,3.941,235.62,235.59,4.29785397]
[1733695015025,3.941,235.62,235.6,1.37101137]
[1733695015221,3.941,235.62,235.58,2.1213]
[1733695015423,3.941,235.62,235.59,4.29815436]
[1733695015619,3.941,235.62,235.6,1.37109794]
[1733695015825,3.941,235.62,235.57,2.1214]
[1733695015826,6.62492821,235.61,235.57,2.1214]
[1733695016019,6.62492821,235.59,235.58,6.49253989]
[1733695016220,6.62492821,235.61,235.58,2.92715847]
[1733695016422,6.62492821,235.61,235.59,2.92715847]
[1733695016624,1.82,235.62,235.6,1.37105224]
[1733695016824,1.82,235.62,235.56,6.62492821]
[1733695017024,1.82,235.62,235.58,2.1213]
[1733695017225,1.82,235.62,235.59,4.29799577]
[1733695017520,1.82,235.62,235.6,1.3709928]
[1733695017824,1.82,235.62,235.58,2.1213]
[1733695018125,1.82,235.62,235.59,4.2981392]
[1733695018323,2.1211,235.61,235.6,1.37103716]
[1733695018628,6.62492821,235.61,235.56,2.1215]
[1733695018826,6.62492821,235.61,235.57,6.49247424]
[1733695019125,6.62492821,235.61,235.58,4.29830418]
[1733695019327,6.62492821,235.61,235.59,4.29831971]
[1733695019515,6.62492821,235.61,235.56,2.1215]
[1733695019723,8.74592821,235.61,235.56,2.1215]
[1733695019925,8.74592821,235.61,235.57,11.17445982]
[1733695020217,8.74592821,235.61,235.58,11.17445982]
[1733695020429,8.74592821,235.61,235.59,6.49146376]
[1733695020626,8.74592821,235.61,235.6,4.29769065]
[1733695021525,2.121,235.61,235.6,4.29769065]
[1733695027432,2.121,235.61,235.6,1.37081811]
[1733695028919,1.82,235.62,235.6,1.37081811]
[1733695029120,1.82,235.62,235.59,2.121]
[1733695029332,1.82,235.62,235.6,6.47438929]
[1733695029530,1.82,235.62,235.61,4.29025237]
[1733695030231,2.1207,235.64,235.61,4.29025237]
[1733695030434,1.82,235.64,235.62,1.36488216]
[1733695030623,2.7521,235.67,235.63,1.36488216]
[1733695030829,1.82,235.66,235.6,6.62492821]
[1733695031026,1.82,235.66,235.63,2.1207]
[1733695031534,1.82,235.66,235.62,8.74572821]
[1733695031736,1.82,235.66,235.63,1.36431957]
[1733695031935,1.82,235.66,235.62,8.74572821]
[1733695032233,1.82,235.66,235.63,1.36433054]
[1733695032437,1.82,235.66,235.62,8.74572821]
[1733695032632,3.9405,235.66,235.63,1.36411084]
[1733695032830,3.9405,235.66,235.62,8.74572821]
[1733695033031,3.9405,235.66,235.63,1.36412477]
[1733695033236,3.9405,235.66,235.62,8.74572821]
[1733695033436,3.9405,235.66,235.63,1.36389209]
[1733695033734,3.9405,235.66,235.62,8.74572821]
[1733695033928,3.9405,235.66,235.63,1.36389176]
[1733695033929,2.1206,235.65,235.63,1.36389176]
[1733695034131,2.1206,235.65,235.62,2.1208]
[1733695034331,2.1206,235.65,235.63,1.36360296]
[1733695034534,2.1206,235.65,235.6,6.62492821]
[1733695034733,8.74552821,235.65,235.61,6.46849732]
[1733695034938,8.74552821,235.65,235.62,4.28620792]
[1733695035137,8.74552821,235.65,235.63,1.36364069]
[1733695035438,8.74552821,235.65,235.6,2.1209]
[1733695035641,8.74552821,235.65,235.61,6.4679419]
[1733695035839,8.74572821,235.63,235.62,4.28589718]
[1733695036040,8.74572821,235.63,235.62,1.36348778]
[1733695036332,8.74572821,235.63,235.59,2.121]
[1733695036536,8.74572821,235.63,235.62,1.36385413]
[1733695036739,2.1209,235.62,235.59,2.121]
[1733695037040,2.1209,235.62,235.6,6.4694661]
[1733695037237,2.1209,235.62,235.61,4.28678099]
[1733695038441,8.74572821,235.63,235.61,4.28678099]
[1733695038636,8.74572821,235.63,235.62,1.36388799]
[1733695038838,8.74572821,235.63,235.62,4.28615569]
[1733695039738,2.1208,235.63,235.62,4.28537716]
[1733695040134,2.1208,235.63,235.59,2.121]
[1733695040336,2.1208,235.63,235.62,1.3633661]
[1733695040535,2.1208,235.63,235.62,4.28517598]
[1733695041141,2.1207,235.64,235.62,4.28517598]
[1733695041342,2.1207,235.64,235.63,1.36317407]
[1733695042351,7.92732821,235.65,235.63,1.36317407]
[1733695042547,7.92732821,235.65,235.62,2.1208]
[1733695042844,7.92732821,235.65,235.63,1.36293861]
[1733695043049,1.82,235.66,235.6,6.62492821]
[1733695043250,1.82,235.66,235.63,2.1208]
[1733695044451,1.82,235.66,235.64,1.36280141]
[1733695044651,1.82,235.66,235.63,2.1208]
[1733695044847,1.82,235.67,235.64,1.36286582]
[1733695045043,1.82,235.67,235.65,4.28349987]
[1733695045251,1.82,235.67,235.62,6.62492821]
[1733695045449,1.82,235.67,235.64,2.1206]
[1733695045649,1.82,235.67,235.65,1.36255293]
[1733695045954,10.56512821,235.69,235.66,1.36256014]
[1733695046154,10.56512821,235.69,235.65,2.1206]
[1733695047155,3.9402,235.69,235.65,2.1206]
[1733695047352,10.56512821,235.69,235.65,2.1206]
[1733695047750,10.56512821,235.69,235.64,2.1206]
[1733695048053,10.56512821,235.69,235.65,1.35924538]
[1733695048254,10.56512821,235.69,235.64,2.1206]
[1733695048453,10.56512821,235.69,235.65,1.35912615]
[1733695048755,10.56512821,235.69,235.64,2.1206]
[1733695048951,10.56512821,235.69,235.65,1.35912583]
[1733695049158,10.56512821,235.69,235.64,2.1206]
[1733695049346,10.56512821,235.69,235.65,1.35902909]
[1733695049551,10.56512821,235.69,235.64,2.1206]
[1733695049754,1.3321,235.71,235.65,1.35903271]
[1733695050056,1.3321,235.71,235.66,4.27687949]
[1733695050057,5.2722,235.71,235.66,4.27687949]
[1733695050252,5.2722,235.71,235.64,6.62492821]
[1733695050549,5.2722,235.71,235.66,2.1205]
[1733695051557,3.1521,235.71,235.65,2.1204]
[1733695051758,35.68128681,235.72,235.66,1.35824038]
[1733695051956,1.275,235.79,235.66,6.62492821]
[1733695052153,1.82,235.74,235.69,2.12]
[1733695053961,8.74442821,235.75,235.69,2.12]
[1733695054155,10.56442821,235.75,235.69,2.12]
[1733695054656,10.56442821,235.75,235.7,1.35607481]
[1733695054857,10.56442821,235.75,235.69,2.12]
[1733695055056,10.56442821,235.75,235.7,1.35593874]
[1733695055253,10.56442821,235.75,235.69,2.12]
[1733695056152,2.1196,235.74,235.69,2.12]
[1733695056852,2.1196,235.74,235.7,2.1199]
[1733695058353,2.5732,235.79,235.72,6.62492821]
[1733695058860,2.5732,235.79,235.73,2.1196]
[1733695058861,2.1193,235.78,235.73,2.1196]
[1733695059360,8.74422821,235.78,235.73,2.1196]
[1733695061864,8.74422821,235.78,235.74,2.1195]
[1733695064261,4.2363,235.91,235.76,6.62492821]
[1733695064459,5.8474,235.9,235.76,6.62492821]
[1733695064667,6.62492821,235.83,235.76,6.62492821]
[1733695064867,1.82,235.83,235.76,6.62492821]
[1733695065066,8.44492821,235.83,235.76,6.62492821]
[1733695065563,2.1188,235.82,235.78,2.1192]
[1733695065764,8.44492821,235.83,235.78,2.1192]
[1733695068465,8.44492821,235.83,235.76,6.62492821]
[1733695069266,10.56372821,235.83,235.77,2.1192]
[1733695069462,3.9388,235.83,235.77,2.1192]
[1733695069662,6.62492821,235.82,235.76,6.62492821]
[1733695070663,6.62492821,235.82,235.78,2.1191]
[1733695072062,8.74372821,235.82,235.78,2.1191]
[1733695073068,8.74372821,235.82,235.77,2.1193]
[1733695074464,6.62492821,235.8,235.77,2.1193]
[1733695075068,6.62492821,235.78,235.74,2.1195]
[1733695075674,2.1191,235.79,235.75,2.1194]
[1733695076174,9.20642821,235.82,235.76,6.62492821]
[1733695076375,9.20642821,235.82,235.78,2.1191]
[1733695078079,9.20642821,235.82,235.79,2.1191]
[1733695079177,11.32522821,235.82,235.78,2.1192]
[1733695079678,1.82,235.83,235.76,6.62492821]
[1733695080382,3.9388,235.83,235.78,2.1191]
[1733695080778,3.9388,235.83,235.79,2.1191]
[1733695081977,2.1189,235.81,235.76,2.1193]
[1733695084386,2.1189,235.81,235.74,6.62492821]
[1733695084578,2.1189,235.81,235.77,2.1193]
[1733695086683,8.74382821,235.82,235.77,2.1193]
[1733695087484,3.9387,235.83,235.78,2.1191]
[1733695087684,3.9387,235.83,235.78,6.62492821]
[1733695088684,3.9387,235.83,235.79,2.1191]
[1733695096083,6.62492821,235.82,235.75,6.62492821]
[1733695096289,6.62492821,235.8,235.76,4.26510418]
[1733695096484,6.62492821,235.8,235.73,6.62492821]
[1733695096688,6.62492821,235.8,235.74,6.43647487]
[1733695096890,6.62492821,235.8,235.75,4.26692213]
[1733695097092,2.1191,235.79,235.76,1.35568109]
[1733695097285,2.1191,235.79,235.77,1.35568109]